bitfinex/quotes_ETHUSD_20241212
["timestamp","ask_amount","ask_price","bid_price","bid_amount"]
[1734008301917,4.65,3958.9,3958.8,22.34651913]
[1734008302135,4.65,3958.9,3958.8,19.37650106]
[1734008302330,4.65,3958.9,3958.8,22.47199402]
[1734008302555,4.65,3958.9,3958.8,7.77670389]
[1734008302748,4.65,3958.9,3958.8,2.65148489]
[1734008302952,4.65,3958.9,3958.8,4.7176029]
[1734008303465,4.65,3958.9,3958.8,2.1915929]
[1734008303660,6.2,3958.9,3958.8,2.1915929]
[1734008303815,6.2,3958.9,3958.8,2.7415929]
[1734008304021,6.2,3958.9,3958.8,36.93838106]
[1734008304233,6.2,3958.9,3958.8,35.91209906]
[1734008304420,6.2,3958.9,3958.8,34.44067606]
[1734008304650,6.2,3958.9,3958.8,37.54131431]
[1734008304834,6.2,3958.9,3958.8,34.44067606]
[1734008305020,6.2,3958.9,3958.8,37.54123221]
[1734008305464,6.2,3958.9,3958.8,37.18252321]
[1734008305665,6.2,3958.9,3958.8,31.52749021]
[1734008305983,6.2,3958.9,3958.8,25.94309506]
[1734008306365,6.2,3958.9,3958.8,29.04365121]
[1734008306930,6.2,3958.9,3958.8,28.49365121]
[1734008307066,7.75,3958.9,3958.8,20.60692006]
[1734008307731,7.75,3958.9,3958.8,10.98461017]
[1734008307864,7.75,3958.9,3958.8,9.10987362]
[1734008308163,7.75,3958.9,3958.8,8.59298019]
[1734008308364,7.75,3958.9,3958.8,11.11929951]
[1734008308559,7.75,3958.9,3958.8,9.04979717]
[1734008309407,7.75,3958.9,3958.8,9.59979717]
[1734008310324,7.75,3958.9,3958.8,6.52378717]
[1734008310510,9.3,3958.9,3958.8,9.04979717]
[1734008310711,9.3,3958.9,3958.8,9.59979717]
[1734008311079,9.3,3958.9,3958.8,6.52378717]
[1734008311380,10.9658,3958.9,3958.8,6.52378717]
[1734008311589,9.3,3958.9,3958.8,8.5944357]
[1734008311902,9.3,3958.9,3958.8,2.07064853]
[1734008312089,9.3,3958.9,3958.7,2.07064853]
[1734008312410,9.3,3958.9,3958.8,16.7132011]
[1734008312613,9.3,3958.9,3958.8,26.77265704]
[1734008312840,9.3,3958.9,3958.8,24.94300804]
[1734008313038,2.9851,3958.9,3958.8,25.24015109]
[1734008313683,4.5351,3958.9,3958.8,25.45176209]
[1734008313883,4.5351,3958.9,3958.8,23.18450904]
[1734008314082,4.5351,3958.9,3958.8,21.18450904]
[1734008314385,4.5351,3958.9,3958.8,23.94746874]
[1734008314582,4.5351,3958.9,3958.8,24.28766961]
[1734008315035,4.5351,3958.9,3958.8,13.04315861]
[1734008315234,4.5351,3958.9,3958.8,41.35396063]
[1734008315423,4.5351,3958.9,3958.8,41.42008166]
[1734008315925,4.5351,3958.9,3958.8,40.00187166]
[1734008316102,4.5351,3958.9,3958.8,38.15871109]
[1734008316836,1e-05,3958.9,3958.8,36.89148352]
[1734008317003,1e-05,3958.9,3958.8,33.27180709]
[1734008317212,1.55001,3958.9,3958.8,33.27180709]
[1734008317986,1.55001,3958.9,3958.8,33.3988545]
[1734008318183,1.55001,3958.9,3958.8,37.01853093]
[1734008318502,1.55001,3958.9,3958.8,33.3988545]
[1734008319288,2.76e-06,3958.9,3958.8,33.3988545]
[1734008319491,1.5559667,3959.0,3958.9,6.07595]
[1734008319691,1.5559667,3959.0,3958.9,56.57159787]
[1734008319935,0.005,3960.1,3960.0,5.07525]
[1734008320238,0.005,3960.1,3960.0,11.59903717]
[1734008320512,0.005,3960.1,3960.0,39.82608517]
[1734008320662,1.555,3960.1,3960.0,40.51062117]
[1734008320821,1.555,3960.1,3960.0,38.62857617]
[1734008321021,1.555,3960.1,3960.0,35.59509917]
[1734008322256,1.555,3960.1,3960.0,34.20877117]
[1734008322955,0.01569492,3960.4,3960.2,6.07512]
[1734008323141,0.01569492,3960.4,3960.2,3.0]
[1734008323458,0.01569492,3960.4,3960.1,34.79266908]
[1734008323459,1.5237,3960.3,3960.1,2.06753196]
[1734008323675,1.5237,3960.3,3959.9,2.06753196]
[1734008324023,3.0737,3960.3,3960.2,2.52512]
[1734008324866,1.555,3960.3,3960.2,3.07512]
[1734008325337,1.555,3960.3,3960.2,0.55]
[1734008325585,1.555,3960.3,3960.2,5.14280234]
[1734008325902,1.555,3960.3,3960.2,9.224177]
[1734008326042,1.555,3960.3,3960.2,9.318798]
[1734008326388,1.555,3960.3,3960.2,6.726505]
[1734008326679,1.555,3960.3,3960.1,2.58418431]
[1734008326982,1.555,3960.3,3960.2,5.14252565]
[1734008327345,3.105,3960.3,3960.2,3.07512]
[1734008328048,3.105,3960.3,3960.2,8.07512]
[1734008328379,3.105,3960.3,3960.2,6.07512]
[1734008328706,4.6054,3960.3,3960.2,2.06686614]
[1734008328851,1.6662,3960.2,3959.9,2.06686614]
[1734008329054,1.6662,3960.1,3959.6,2.06686614]
[1734008329256,3.105,3960.3,3958.6,2.58327513]
[1734008329257,1.6662,3959.5,3958.6,2.58327513]
[1734008329455,0.25,3959.9,3958.2,3.10102117]
[1734008329456,1.6662,3959.0,3958.2,1.009994]
[1734008329703,3.254924,3960.0,3957.7,2.58327513]
[1734008329704,0.25,3959.3,3957.7,2.58327513]
[1734008329924,1.6662,3958.4,3957.3,2.58327513]
[1734008330061,1.6662,3958.4,3957.4,6.1070623]
[1734008330257,1.6662,3958.4,3956.8,0.45040881]
[1734008330258,1.6662,3958.3,3957.2,2.58327513]
[1734008330585,1.6662,3958.3,3957.0,2.58327513]
[1734008330891,1.6662,3958.2,3957.0,2.90671373]
[1734008331094,1.6662,3958.2,3957.1,0.3234386]
[1734008331267,2.995667,3958.2,3957.1,0.3234386]
[1734008331586,2.995667,3958.2,3956.7,2.52735]
[1734008331587,4.19267,3958.1,3956.7,2.52735]
[1734008332190,1.629,3958.0,3956.6,3.3234386]
[1734008332489,1.629,3958.0,3956.5,5.11641028]
[1734008332490,1.629,3958.0,3956.9,3.0]
[1734008332696,1.629,3958.8,3957.0,0.3234386]
[1734008333000,1.629,3958.2,3957.0,0.3234386]
[1734008333292,1.629,3958.2,3957.0,3.3234386]
[1734008333588,4.15542,3958.2,3957.0,0.3234386]
[1734008333788,1.629,3958.2,3957.0,3.3234386]
[1734008333991,1.629,3958.2,3957.0,5.8505886]
[1734008334178,1.55,3958.0,3957.2,2.52702]
[1734008334377,1.55,3958.0,3957.2,2.8504586]
[1734008334886,1.55,3958.0,3957.2,0.3234386]
[1734008335298,1.55,3958.0,3957.2,2.8504486]
[1734008335666,1.55,3958.0,3956.8,3.3234386]
[1734008335873,1.55,3958.0,3957.0,3.0]
[1734008336069,1.55,3958.0,3956.9,0.3234386]
[1734008336662,1.55,3958.0,3957.1,2.52708]
[1734008336859,1.55,3958.0,3956.9,0.3234386]
[1734008337571,3.1,3958.0,3956.9,0.3234386]
[1734008338171,1.5245,3957.9,3956.9,0.3234386]
[1734008338375,1.5245,3957.9,3957.0,2.52716]
[1734008338695,1.5245,3957.9,3957.1,0.3234386]
[1734008339196,3.1,3958.0,3957.5,0.55]
[1734008339400,3.1,3958.0,3957.7,3.52378717]
[1734008339696,3.1,3958.0,3957.9,6.07659]
[1734008339895,3.1,3958.0,3957.9,20.7066106]
[1734008340197,3.1,3958.0,3957.9,20.87594322]
[1734008340772,4.65,3958.0,3957.9,20.87594322]
[1734008341269,0.86022,3958.0,3957.9,18.61409925]
[1734008341579,1.55,3959.0,3958.5,3.0762]
[1734008341775,1.55,3959.0,3958.8,2.52599]
[1734008342504,1.55,3959.0,3958.6,0.55]
[1734008342667,1.55,3959.0,3958.6,6.07614]
[1734008343436,1.55,3959.0,3958.5,5.06584763]
[1734008343744,1.55,3959.0,3957.9,2.06584763]
[1734008343745,1.6031,3958.9,3957.9,2.06584763]
[1734008343943,1.6031,3958.9,3957.8,2.06584763]
[1734008344095,1.6031,3958.9,3957.7,4.59254763]
[1734008344299,1.6031,3958.8,3957.7,2.06584763]
[1734008344499,1.6031,3958.7,3957.6,2.06584763]
[1734008344694,1.6031,3958.6,3957.5,2.06584763]
[1734008345022,1.6031,3958.6,3957.5,2.52684]
[1734008345534,1.6031,3958.6,3957.4,2.06584763]
[1734008345765,4.07503,3958.2,3957.2,2.06584763]
[1734008346032,1.5486,3958.2,3957.0,2.52715]
[1734008346944,1.5486,3958.2,3956.8,2.52729]
[1734008347123,2.52647,3958.1,3956.9,3.55]
[1734008347297,2.52647,3958.1,3956.6,2.63411504]
[1734008347298,4.04378,3958.0,3956.7,5.52733]
[1734008347493,4.04378,3958.0,3956.9,3.0]
[1734008347494,1.5172,3958.0,3956.9,3.0]
[1734008347742,1.5172,3957.8,3956.7,0.3234386]
[1734008348256,1.5172,3957.8,3956.9,3.0]
[1734008348566,1.5172,3957.8,3956.7,0.64449925]
[1734008349223,1.5172,3957.8,3956.8,0.3234386]
[1734008349730,2.5268,3957.6,3956.4,4.3339216]
[1734008349911,1.638,3957.5,3956.4,4.3339216]
[1734008350110,1.638,3957.5,3956.4,1.3339216]
[1734008350422,1.638,3957.5,3956.5,0.3234386]
[1734008350841,4.16484,3957.5,3956.5,0.3234386]
[1734008351038,5.71484,3957.5,3956.5,0.3234386]
[1734008351359,5.71484,3957.5,3956.4,1.010483]
[1734008351539,5.71484,3957.5,3956.5,0.3234386]
[1734008351739,5.71484,3957.5,3956.4,1.010483]
[1734008351740,3.188,3957.5,3956.4,1.010483]
[1734008352524,3.188,3957.5,3956.5,3.0]
[1734008352726,5.71484,3957.5,3956.4,1.010483]
[1734008352956,3.188,3957.5,3956.4,1.010483]
[1734008353263,1.55,3957.5,3956.4,1.010483]
[1734008353462,1.6243,3957.1,3956.4,1.010483]
[1734008353766,1.6243,3957.1,3956.5,0.87106065]
[1734008354533,3.1743,3957.1,3956.7,2.52731]
[1734008356565,3.0743,3957.1,3956.7,2.52731]
[1734008357657,3.0743,3957.1,3956.8,2.52724]
[1734008357988,4.6243,3957.1,3956.5,0.55]
[1734008358267,4.6243,3957.1,3956.7,6.07734]
[1734008358647,4.6243,3957.1,3956.8,2.52729]
[1734008359050,3.1,3957.1,3956.9,2.52718]
[1734008359552,3.1,3957.1,3957.0,2.52716]
[1734008360269,3.1,3957.1,3956.7,0.55]
[1734008360577,3.1,3957.1,3957.0,5.52716]
[1734008361045,1.02187077,3957.1,3957.0,29.652692]
[1734008361243,1e-05,3957.5,3957.4,6.07691]
[1734008361568,1e-05,3957.5,3957.4,42.96356658]
[1734008361952,1.55,3958.0,3957.9,2.0]
[1734008362153,1.55,3958.0,3957.9,11.92143782]
[1734008362394,3.177,3958.0,3957.9,0.32106065]
[1734008362548,3.177,3958.0,3957.3,3.0]
[1734008362752,3.177,3958.0,3957.6,3.0]
[1734008362753,1.55,3958.0,3957.6,3.0]
[1734008362953,1.55,3958.0,3957.7,2.52667]
[1734008363787,1.55,3958.0,3957.6,3.0]
[1734008364000,1.6537,3957.9,3957.0,2.06248555]
[1734008364205,1.6537,3957.9,3956.9,0.32338461]
[1734008364381,1.6537,3957.9,3957.1,3.0]
[1734008364558,1.6537,3957.9,3956.9,3.32338461]
[1734008364559,3.2037,3957.9,3956.9,3.32338461]
[1734008364968,5.73029,3957.9,3956.9,3.0]
[1734008365290,5.73029,3957.9,3956.6,5.52739]
[1734008365630,1.5438,3957.6,3956.4,1.010483]
[1734008365765,2.52687,3957.5,3956.4,1.010483]
[1734008365969,1.6115,3957.4,3956.4,1.010483]
[1734008366289,4.13842,3957.4,3956.4,1.010483]
[1734008366585,1.6115,3957.4,3956.5,2.52748]
[1734008366758,1.6115,3957.4,3956.4,1.010483]
[1734008366962,1.6115,3957.4,3956.4,3.538003]
[1734008367162,1.6115,3957.4,3956.5,2.52748]
[1734008367406,1.6115,3957.4,3956.6,3.0]
[1734008367557,1.60845908,3957.4,3956.6,3.0]
[1734008367752,1.60845908,3957.4,3956.7,3.0]
[1734008367958,3.15845908,3957.4,3956.5,3.0]
[1734008368506,3.15845908,3957.4,3956.7,2.52732]
[1734008368986,3.15845908,3957.4,3956.4,1.010483]
[1734008369155,3.15845908,3957.4,3956.5,2.52748]
[1734008369366,1.55,3957.4,3956.4,4.010483]
[1734008369570,4.23192,3957.4,3956.4,1.010483]
[1734008370287,1.705,3957.4,3956.4,1.010483]
[1734008370462,1.705,3957.4,3955.8,2.58252566]
[1734008370463,2.52737,3956.7,3955.8,2.06248555]
[1734008370799,1.955,3957.4,3955.7,1.010806]
[1734008370800,1.6659,3956.5,3955.7,1.010806]
[1734008371223,1.6659,3956.4,3955.2,2.06248555]
[1734008371372,1.6659,3956.2,3955.1,4.59085555]
[1734008371715,1.6659,3956.2,3955.4,1.010873]
[1734008372269,1.6659,3956.2,3955.4,1.33425761]
[1734008372515,1.6659,3956.2,3955.1,2.06248555]
[1734008372516,1.6659,3956.2,3955.2,2.06248555]
[1734008372714,1.6659,3956.2,3955.3,3.539104]
[1734008373068,1.6659,3956.2,3955.4,0.32338461]
[1734008373386,1.55,3956.5,3956.0,3.52378717]
[1734008373573,1.55,3956.5,3956.2,4.59009555]
[1734008374216,1.55,3956.5,3956.2,2.52761]
[1734008374416,1.55,3956.5,3956.1,2.06248555]
[1734008374580,1.55,3956.5,3955.8,3.0]
[1734008374581,3.1,3956.5,3956.3,2.06248555]
[1734008374891,3.1,3956.5,3956.1,2.06248555]
[1734008375094,1.6462,3956.4,3955.9,2.06248555]
[1734008375617,1.6462,3956.4,3955.8,2.06248555]
[1734008376411,1.6462,3956.4,3956.2,2.52766]
[1734008376720,1.6462,3956.4,3956.1,2.06248555]
[1734008376889,1.6462,3956.4,3956.1,4.59021555]
[1734008377290,1.6462,3956.4,3956.1,2.52773]
[1734008377685,1.6462,3956.4,3956.0,2.06248555]
[1734008377686,2.12082,3956.4,3956.0,2.06248555]
[1734008377881,2.52767,3956.2,3955.8,2.06248555]
[1734008378083,1.5762,3956.1,3955.5,2.06248555]
[1734008378278,1.5762,3956.1,3955.3,2.06248555]
[1734008378484,1.5762,3956.1,3955.2,2.06248555]
[1734008378816,4.13283,3956.0,3955.1,2.06248555]
[1734008379016,2.52795,3955.8,3955.0,2.06248555]
[1734008379319,1.605,3955.7,3954.7,3.04598432]
[1734008379515,1.605,3955.5,3954.7,0.98349877]
[1734008379681,1.605,3955.5,3955.1,2.52834]
[1734008380027,1.605,3955.5,3954.9,2.06248555]
[1734008380183,1.605,3955.5,3955.4,2.52818]
[1734008380382,1.605,3955.5,3955.2,5.06248555]
[1734008380603,1.605,3955.5,3955.2,3.0]
[1734008380927,1.605,3955.5,3955.0,0.32338461]
[1734008380928,1.605,3955.5,3955.0,5.06248555]
[1734008381217,1.605,3955.5,3954.8,2.59671968]
[1734008381218,3.155,3955.5,3955.2,2.5283]
[1734008381609,3.155,3955.5,3955.0,2.06248555]
[1734008381791,3.155,3955.5,3955.2,2.52829]
[1734008383888,3.155,3955.5,3954.8,3.0]
[1734008384100,3.155,3955.5,3954.7,1.99451277]
[1734008384307,1.6046,3955.4,3954.7,1.99451277]
[1734008384705,1.6046,3955.4,3954.7,0.98349877]
[1734008385101,1.6607,3955.3,3954.3,1.01114]
[1734008385431,1.6607,3955.3,3954.3,2.52889]
[1734008386002,1.6607,3955.3,3954.5,2.52874]
[1734008386197,1.6607,3955.3,3954.1,6.92083533]
[1734008386433,1.6607,3955.3,3955.0,2.52843]
[1734008387137,1.6607,3955.3,3954.8,2.52856]
[1734008387910,3.2107,3955.3,3954.8,2.52856]
[1734008388341,3.2107,3955.3,3954.8,2.52854]
[1734008388540,3.2107,3955.3,3954.6,3.52378717]
[1734008389320,3.2107,3955.3,3954.5,4.59124555]
[1734008389655,3.2107,3955.3,3954.5,2.52876]
[1734008389819,3.2107,3955.3,3954.6,5.52864]
[1734008390607,3.2107,3955.3,3954.5,3.0]
[1734008390807,3.2107,3955.3,3954.6,2.52864]
[1734008391056,3.2107,3955.3,3954.7,3.0]
[1734008391211,4.7607,3955.3,3954.6,3.0]
[1734008391622,4.7607,3955.3,3954.8,2.52856]
[1734008391828,4.7607,3955.3,3954.6,3.0]
[1734008391829,4.7607,3955.3,3954.6,2.5287]
[1734008392032,4.7607,3955.3,3954.6,3.84717178]
[1734008392246,4.7607,3955.3,3954.7,0.55]
[1734008392415,4.7607,3955.3,3955.0,2.52838]
[1734008392740,4.7607,3955.3,3954.7,2.61248555]
[1734008392741,4.7607,3955.3,3954.6,2.52869]
[1734008393245,4.7607,3955.3,3954.4,2.06248555]
[1734008393432,4.7607,3955.3,3954.6,3.0]
[1734008393620,4.7607,3955.3,3954.9,2.52849]
[1734008393821,4.7607,3955.3,3954.7,0.55]
[1734008394146,4.7607,3955.3,3954.9,2.52845]
[1734008394515,6.3107,3955.3,3954.9,2.52845]
[1734008395034,6.3107,3955.3,3954.6,11.11495272]
[1734008395221,6.3107,3955.3,3954.6,9.05246717]
[1734008395558,6.3107,3955.3,3954.7,2.52861]
[1734008397908,6.3107,3955.3,3954.4,2.06248555]
[1734008397909,8.80177,3955.3,3954.4,2.06248555]
[1734008398134,1.5748,3955.2,3954.2,7.59143555]
[1734008398849,4.10315,3955.2,3954.2,5.06248555]
[1734008399053,1.5748,3955.1,3954.2,5.06248555]
[1734008399351,1.5748,3955.1,3954.1,1.011178]
[1734008399352,7.14107,3955.3,3954.1,1.011178]
[1734008399559,1.6394,3955.1,3954.1,1.011178]
[1734008399761,1.6394,3954.9,3954.1,1.011178]
[1734008399961,1.6394,3954.5,3953.4,6.05324717]
[1734008400182,1.6394,3954.5,3953.7,1.011379]
[1734008400687,1.6394,3954.5,3953.7,1.33476361]
[1734008400842,1.6394,3954.5,3953.9,2.52908]
[1734008401040,1.6394,3954.5,3954.0,2.52907]
[1734008401265,3.1894,3954.5,3954.4,2.52882]
[1734008401424,1.55,3954.5,3954.4,2.52882]
[1734008402865,1.55,3954.5,3954.4,9.60260717]
[1734008403020,6.2,3955.3,3955.1,2.52838]
[1734008403227,6.2,3955.3,3955.2,0.55]
[1734008403569,6.2,3955.3,3955.2,3.07831]
[1734008403757,6.2,3955.3,3955.2,20.704881]
[1734008403953,7.7903,3955.3,3955.1,2.06248555]
[1734008404263,7.7903,3955.3,3954.8,3.07856]
[1734008404428,7.7903,3955.3,3954.8,0.55]
[1734008404630,7.75,3955.3,3955.2,3.07831]
[1734008404833,7.75,3955.3,3955.2,11.546277]
[1734008405133,7.75,3955.3,3955.2,23.332534]
[1734008405464,7.75,3955.3,3955.2,6.07831]
[1734008405766,7.75,3955.3,3955.2,26.93787382]
[1734008406063,7.75,3955.3,3955.2,3.15034182]
[1734008406271,7.75,3955.3,3955.2,23.340406]
[1734008406475,7.75,3955.3,3955.2,5.52831]
[1734008407036,7.75,3955.3,3955.2,28.177932]
[1734008407233,7.75,3955.3,3955.2,20.503933]
[1734008407439,7.75,3955.3,3955.2,6.13382432]
[1734008407772,7.75,3955.3,3955.2,2.52831]
[1734008407941,9.3,3955.3,3955.1,3.52378717]
[1734008408668,9.3,3955.3,3954.8,2.52856]
[1734008408834,9.3,3955.3,3954.6,3.52378717]
[1734008409243,1.6449,3955.2,3954.6,6.05246717]
[1734008409443,1.6449,3955.2,3954.7,2.52862]
[1734008409850,1.6449,3955.2,3954.6,3.52378717]
[1734008410046,1.6449,3955.2,3955.0,2.52842]
[1734008410478,1.6449,3955.2,3954.7,2.59261668]
[1734008410887,1.6449,3955.2,3954.9,2.52849]
[1734008411088,1.6449,3955.2,3954.7,2.59261668]
[1734008411390,1.6449,3955.2,3954.9,2.59261668]
[1734008411595,3.1949,3955.2,3954.9,2.59261668]
[1734008411771,3.1949,3955.2,3954.9,2.5285]
[1734008412091,3.1949,3955.2,3955.0,2.52844]
[1734008412311,3.1949,3955.2,3954.8,5.12117668]
[1734008412468,4.75439,3955.2,3954.9,2.59261668]
[1734008412658,4.75439,3955.2,3954.5,3.10893854]
[1734008412659,4.75439,3955.2,3954.5,2.59261668]
[1734008412856,4.75439,3955.2,3954.5,5.12136668]
[1734008413064,4.75439,3955.2,3954.5,2.52875]
[1734008413292,4.75439,3955.2,3954.6,2.52869]
[1734008413490,4.75439,3955.2,3954.5,2.5994159]
[1734008413691,1.405439,3955.1,3954.5,2.5994159]
[1734008413878,3.1949,3955.2,3954.5,2.5994159]
[1734008414191,3.1949,3955.2,3954.1,9.17206625]
[1734008414192,3.1949,3955.2,3954.8,4.60828013]
[1734008414393,3.1949,3955.2,3955.0,2.07972013]
[1734008414694,3.1949,3955.2,3954.9,2.07972013]
[1734008414862,4.7449,3955.2,3954.8,2.07972013]
[1734008415059,1.07657119,3955.1,3954.7,2.07972013]
[1734008415290,1.07657119,3955.1,3954.8,2.07972013]
[1734008415492,4.7449,3955.2,3954.8,2.07972013]
[1734008415695,4.7449,3955.2,3954.9,5.37178933]
[1734008415696,0.03029926,3955.0,3954.9,5.37178933]
[1734008415896,4.7449,3955.2,3954.9,2.77213917]
[1734008416191,4.7449,3955.2,3955.1,2.08110853]
[1734008416356,4.7449,3955.2,3955.0,2.60121637]
[1734008416562,3.1,3955.2,3955.1,5.12959637]
[1734008416790,3.1,3955.2,3955.1,2.52838]
[1734008417208,2.47791513,3955.5,3955.3,3.0]
[1734008417507,2.47791513,3955.5,3955.4,32.02892143]
[1734008417796,2.47791513,3955.5,3955.4,11.21225217]
[1734008418164,4.02791513,3955.5,3955.4,8.85031917]
[1734008418397,4.02791513,3955.5,3955.4,30.00272817]
[1734008418593,4.02791513,3955.5,3955.4,36.15962017]
[1734008418811,4.02791513,3955.5,3955.4,34.60401717]
[1734008420095,4.02791513,3955.5,3955.4,28.281878]
[1734008420295,5.68321513,3955.5,3955.4,25.753698]
[1734008420628,5.68321513,3955.5,3955.2,2.52828]
[1734008420803,5.68321513,3955.5,3955.2,5.30041917]
[1734008421004,5.68321513,3955.5,3955.4,2.59998403]
[1734008421228,5.68321513,3955.5,3955.2,2.77213917]
[1734008421404,5.68321513,3955.5,3955.4,2.60041806]
[1734008421914,5.68321513,3955.5,3955.4,5.12816063]
[1734008421915,5.57791513,3955.5,3955.4,5.12816063]
[1734008422111,5.57791513,3955.5,3955.4,2.52818]
[1734008422419,5.57791513,3955.5,3955.2,5.30043917]
[1734008422603,5.57791513,3955.5,3955.4,2.60030412]
[1734008422813,5.57791513,3955.5,3955.2,2.77213917]
[1734008423014,5.57791513,3955.5,3955.4,2.60045967]
[1734008423015,5.60406985,3955.5,3955.4,2.60045967]
[1734008423248,6.16447683,3955.5,3955.3,2.60045967]
[1734008423395,6.16447683,3955.5,3955.3,2.08077757]
[1734008423600,6.16447683,3955.5,3955.1,2.08077757]
[1734008423601,2.52828,3955.3,3955.1,2.08077757]
[1734008423801,1.5232,3955.2,3954.8,2.08077757]
[1734008424106,1.54954956,3955.2,3955.0,2.08077757]
[1734008424308,1.54954956,3955.2,3955.0,2.60045967]
[1734008424618,1.54954956,3955.2,3955.0,2.60115125]
[1734008424836,1.54954956,3955.2,3953.7,2.271379]
[1734008424837,1.54954956,3955.2,3954.8,2.08119134]
[1734008425009,1.54954956,3955.2,3954.7,2.08119134]
[1734008425211,5.62788956,3955.2,3954.6,2.08119134]
[1734008425422,2.69693003,3955.2,3954.5,4.68234259]
[1734008425639,1.5692,3954.8,3954.5,2.08119134]
[1734008425835,1.5692,3954.8,3953.7,3.540639]
[1734008425836,4.0978,3954.8,3954.4,2.08119134]
[1734008426032,0.02621447,3954.7,3954.3,2.08119134]
[1734008426235,0.02621447,3954.7,3954.1,2.08119134]
[1734008426236,2.5289,3954.3,3954.1,2.08119134]
[1734008426421,2.5289,3954.3,3953.9,2.08119134]
[1734008426746,0.02597325,3954.2,3953.7,2.08119134]
[1734008426954,1.58,3954.1,3953.8,2.08119134]
[1734008427244,1.58,3954.1,3953.5,2.08119134]
[1734008427408,0.02580523,3954.0,3953.5,2.08119134]
[1734008428246,0.02580523,3954.0,3953.4,2.08119134]
[1734008428469,2.55488523,3954.0,3953.3,2.08119134]
[1734008428954,2.55488523,3954.0,3953.2,3.61280531]
[1734008428955,0.02580523,3954.0,3953.4,2.08119134]
[1734008429157,0.02580523,3954.0,3953.3,2.08119134]
[1734008429665,0.02445308,3953.9,3953.3,2.08119134]
[1734008430011,2.55360308,3953.9,3953.3,2.08119134]
[1734008430215,2.52929,3953.7,3953.1,2.08119134]
[1734008430520,1.5511,3953.6,3953.0,2.08119134]
[1734008430735,1.5511,3953.6,3952.9,3.09273934]
[1734008430736,1.57555245,3953.6,3952.9,3.09273934]
[1734008431124,1.5511,3953.1,3952.5,2.08119134]
[1734008431323,1.5511,3953.1,3952.0,3.12156023]
[1734008431324,2.52973,3953.0,3952.1,2.08119134]
[1734008431529,1.6098,3953.9,3952.0,3.09293234]
[1734008431830,1.6098,3952.7,3951.9,2.08119134]
[1734008432166,1.6098,3952.7,3951.4,3.12063494]
[1734008432167,2.53005,3952.5,3951.4,2.08119134]
[1734008432344,1.6098,3952.5,3951.9,1.011802]
[1734008432544,1.6098,3952.5,3951.2,2.08119134]
[1734008432857,1.55,3953.0,3952.0,2.53035]
[1734008432858,0.02361688,3952.4,3952.0,2.53035]
[1734008433307,0.02361688,3952.4,3951.7,2.08119134]
[1734008433509,0.02361688,3952.4,3952.2,2.53021]
[1734008433730,1.6098,3952.7,3952.2,2.53019]
[1734008434211,1.6098,3952.7,3951.9,2.08119134]
[1734008434411,0.0236173,3952.6,3951.8,2.08119134]
[1734008434628,1.6098,3952.7,3951.7,3.0]
[1734008434629,1.6098,3952.7,3952.1,2.53028]
[1734008435143,0.0236173,3952.6,3952.2,2.53023]
[1734008435467,1.55,3953.0,3952.7,2.5299]
[1734008435613,1.55,3953.0,3952.2,2.53022]
[1734008435614,1.55,3953.0,3952.5,2.53003]
[1734008435809,0.02361793,3952.9,3952.5,2.53003]
[1734008436017,0.02361793,3952.9,3951.8,2.08119134]
[1734008436329,1.6577,3952.8,3951.5,2.08119134]
[1734008436537,1.6577,3952.8,3951.4,5.08119134]
[1734008436741,1.6577,3952.8,3951.6,2.53061]
[1734008436922,1.6577,3952.8,3951.4,5.53073]
[1734008436923,2.52992,3952.7,3951.4,5.53073]
[1734008437120,2.52992,3952.7,3951.3,3.09314134]
[1734008437121,4.18278,3952.6,3951.3,1.01195]
[1734008437418,1.55,3953.0,3951.2,2.53087]
[1734008437419,1.6528,3952.3,3951.2,2.53087]
[1734008437627,4.18299,3952.3,3951.2,1.011978]
[1734008437814,1.652,3952.2,3951.1,2.53091]
[1734008438432,1.652,3952.2,3951.2,2.53087]
[1734008438627,1.652,3952.2,3950.9,1.012032]
[1734008438829,1.652,3952.2,3951.3,0.30690657]
[1734008439027,1.652,3952.2,3951.7,2.53054]
[1734008439227,0.02253711,3952.1,3951.1,2.53094]
[1734008439427,1.652,3952.2,3951.6,2.53061]
[1734008439630,0.0225369,3952.0,3951.8,2.53047]
[1734008439831,1.55,3952.3,3952.1,2.5303]
[1734008441153,1.55,3952.3,3952.2,2.53023]
[1734008441356,1.55,3952.3,3951.7,2.53053]
[1734008441357,3.1012,3952.3,3951.7,2.53053]
[1734008441554,3.1012,3952.3,3951.8,2.53047]
[1734008441760,3.41132,3952.3,3951.3,0.55]
[1734008442095,3.41132,3952.3,3951.1,2.53093]
[1734008442388,3.41132,3952.3,3950.8,2.53108]
[1734008442389,3.41132,3952.3,3951.2,2.53086]
[1734008442544,7.49152,3952.3,3951.2,2.53086]
[1734008442741,4.6512,3952.3,3950.7,4.09455]
[1734008442942,4.6512,3952.3,3951.6,2.53061]
[1734008443170,4.6512,3952.3,3951.2,2.53087]
[1734008443378,4.6512,3952.3,3950.8,0.30690657]
[1734008443379,1.5519,3952.1,3951.0,2.53095]
[1734008443547,1.5519,3952.1,3950.8,3.0]
[1734008443878,1.5519,3952.1,3951.4,2.53074]
[1734008444786,1.5519,3952.1,3950.9,0.55]
[1734008445089,1.5519,3952.1,3951.4,2.53073]
[1734008446193,3.1019,3952.1,3950.8,0.55]
[1734008446346,1.5741,3952.0,3951.1,3.0]
[1734008446552,1.5741,3951.7,3950.6,1.011898]
[1734008446881,1.5741,3951.7,3950.7,3.0]
[1734008447042,1.5741,3951.7,3950.6,3.543138]
[1734008447043,2.53062,3951.6,3950.6,1.011898]